bitfinex/quotes_SOLUSD_20251216
["timestamp","ask_amount","ask_price","bid_price","bid_amount"]
[1765893683745,13.0470912,126.59,126.53,13.77271241]
[1765893683948,7.89702282,126.63,126.53,8.80994492]
[1765893684161,29.58336331,126.65,126.56,0.66]
[1765893684388,29.58336331,126.65,126.52,41.61585028]
[1765893684389,13.0470912,126.58,126.49,0.66]
[1765893684675,13.0470912,126.54,126.45,13.77271241]
[1765893684837,13.0470912,126.54,126.38,0.99999999]
[1765893685040,13.0470912,126.58,126.48,0.66]
[1765893685239,27.64394596,126.61,126.54,13.77271241]
[1765893685436,13.77271241,126.59,126.49,0.66]
[1765893685656,13.0470912,126.6,126.49,0.66]
[1765893685863,7.89827027,126.61,126.48,0.66]
[1765893686069,13.0470912,126.58,126.51,0.66]
[1765893686261,7.90263948,126.54,126.48,8.56638148]
[1765893686464,39.49135139,126.61,126.52,14.43271241]
[1765893686773,13.77271241,126.59,126.53,0.66]
[1765893686949,13.77271241,126.58,126.53,13.77271241]
[1765893687155,27.63957987,126.63,126.48,36.4822973]
[1765893687359,7.89702282,126.63,126.59,13.77271241]
[1765893687571,13.77271241,126.6,126.51,13.77271241]
[1765893687752,13.77271241,126.52,126.47,13.77271241]
[1765893687959,8.64,126.59,126.45,14.43271241]
[1765893687960,13.77271241,126.5,126.45,14.43271241]
[1765893688145,13.0470912,126.54,126.47,0.66]
[1765893688341,13.77271241,126.56,126.51,13.77271241]
[1765893688579,21.6870912,126.57,126.49,0.66]
[1765893688759,13.77271241,126.54,126.49,0.66]
[1765893688957,13.0470912,126.57,126.49,0.66]
[1765893689275,13.0470912,126.53,126.45,0.66]
[1765893689475,13.0470912,126.53,126.44,2.84763902]
[1765893689666,13.77271241,126.45,126.44,2.84763902]
[1765893689872,8.64,126.47,126.44,2.84763902]
[1765893690049,87.10060029,126.6,126.46,13.77271241]
[1765893690253,7.90076637,126.57,126.53,13.77271241]
[1765893690446,7.90076637,126.57,126.51,0.66]
[1765893690651,8.64,126.59,126.54,0.66]
[1765893690951,23.74826835,126.67,126.58,13.77271241]
[1765893691156,13.77271241,126.65,126.61,13.77271241]
[1765893691452,13.77271241,126.62,126.55,0.66]
[1765893691658,75.74879519,126.66,126.56,13.77271241]
[1765893691855,13.77271241,126.6,126.55,13.77271241]
[1765893692092,8.64,126.61,126.55,13.77271241]
[1765893692274,27.62867066,126.68,126.6,22.33128424]
[1765893692452,41.40138307,126.68,126.63,13.77271241]
[1765893692648,13.77271241,126.67,126.6,8.55857183]
[1765893692873,13.77271241,126.67,126.63,13.77271241]
[1765893693058,16.5339059,126.68,126.64,13.77271241]
[1765893693274,16.5339059,126.68,126.65,13.77271241]
[1765893693464,34.71246343,126.7,126.65,0.66]
[1765893693665,7.89265982,126.7,126.66,13.77271241]
[1765893693874,21.66537223,126.7,126.66,14.48271241]
[1765893694057,21.66537223,126.7,126.6,36.45575213]
[1765893694058,7.89202091,126.72,126.68,0.71]
[1765893694256,7.89202091,126.72,126.68,14.48271241]
[1765893694559,13.77271241,126.73,126.7,0.71]
[1765893694900,13.77271241,126.73,126.61,21.6670912]
[1765893694901,36.25341222,126.75,126.63,19.74108235]
[1765893695052,13.0470912,126.72,126.65,7.89520047]
[1765893695379,13.0470912,126.72,126.64,8.80994492]
[1765893695380,13.77271241,126.72,126.68,14.48271241]
[1765893695753,8.64,126.73,126.69,14.48271241]
[1765893695950,7.88954635,126.75,126.71,0.71]
[1765893696155,7.88954635,126.75,126.65,19.73840884]
[1765893696355,7.89265982,126.7,126.66,13.77271241]
[1765893696665,7.89265982,126.7,126.66,14.48271241]
[1765893696891,7.89265982,126.7,126.67,0.71]
[1765893697058,7.89079144,126.73,126.69,13.77271241]
[1765893697373,21.6630085,126.74,126.65,0.71]
[1765893697591,27.61571821,126.74,126.64,0.71]
[1765893697754,13.77271241,126.7,126.66,0.71]
[1765893697955,13.77271241,126.7,126.66,14.48271241]
[1765893698151,8.64,126.69,126.61,0.71]
[1765893698380,8.64,126.69,126.01,42.40570028]
[1765893698381,7.89577575,126.65,126.54,0.71]
[1765893698580,67.11409393,126.65,126.54,0.71]
[1765893698785,13.77271241,126.61,126.57,0.71]
[1765893698996,8.64,126.62,126.57,14.48271241]
[1765893699164,8.64,126.62,126.59,0.71]
[1765893699369,13.77271241,126.61,126.54,0.71]
[1765893699563,8.64,126.62,126.53,0.71]
[1765893699758,13.77271241,126.58,126.53,0.71]
[1765893700083,13.0470912,126.59,126.53,0.71]
[1765893700260,13.77271241,126.54,126.5,14.48271241]
[1765893700461,16.5401422,126.58,126.53,13.77271241]
[1765893700661,7.9001422,126.58,126.56,13.77271241]
[1765893701072,0.99999999,126.69,126.58,0.71]
[1765893701073,7.89328281,126.69,126.58,0.71]
[1765893701287,13.77271241,126.64,126.6,13.77271241]
[1765893701475,13.77271241,126.65,126.6,0.71]
[1765893701658,13.0470912,126.66,126.55,0.71]
[1765893701859,27.62648985,126.69,126.62,13.77271241]
[1765893702185,21.6870912,126.68,126.6,0.71]
[1765893702431,21.6870912,126.68,126.53,13.0470912]
[1765893702432,13.77271241,126.61,126.47,0.99999999]
[1765893702685,13.77271241,126.56,126.48,0.71]
[1765893702869,13.77271241,126.56,126.49,0.71]
[1765893703072,13.0470912,126.58,126.51,0.71]
[1765893703269,13.77271241,126.56,126.51,14.48271241]
[1765893703470,13.77271241,126.52,126.48,0.71]
[1765893703664,21.6870912,126.55,126.45,0.71]
[1765893703857,13.0470912,126.55,126.48,13.77271241]
[1765893704059,8.64,126.54,126.46,0.71]
[1765893704258,13.77271241,126.52,126.46,0.71]
[1765893704480,7.90400677,126.52,126.49,14.48271241]
[1765893704683,13.0470912,126.55,126.52,0.71]
[1765893704984,40.7046735,126.55,126.5,13.77271241]
[1765893705158,40.7002777,126.57,126.48,8.80994492]
[1765893705494,40.7002777,126.57,126.53,0.71]
[1765893705682,40.7002777,126.57,126.48,0.71]
[1765893705995,8.64,126.62,126.49,0.71]
[1765893706193,13.0470912,126.61,126.55,0.71]
[1765893706501,20.6788518,126.64,126.59,12.0388518]
[1765893706677,8.64,126.64,126.58,12.0388518]
[1765893706991,8.39458441,126.67,126.59,0.71]
[1765893707188,7.89458441,126.67,126.64,0.71]
[1765893707369,7.89458441,126.67,126.61,12.0388518]
[1765893707370,12.0388518,126.65,126.61,12.0388518]
[1765893707684,12.0388518,126.66,126.62,12.7488518]
[1765893707892,40.67799833,126.67,126.62,12.7488518]
[1765893708059,40.67799833,126.67,126.61,12.0388518]
[1765893708259,52.71685013,126.67,126.57,7.9007479]
[1765893708490,0.99999999,126.76,126.63,0.71]
[1765893708675,7.88892395,126.76,126.63,0.71]
[1765893708859,12.0388518,126.69,126.63,0.71]
[1765893709065,28.36386587,126.75,126.66,0.71]
[1765893709066,20.6788518,126.7,126.66,0.71]
[1765893709261,13.0470912,126.71,126.67,12.0388518]
[1765893709484,19.72386587,126.75,126.71,0.71]
[1765893709685,19.72386587,126.75,126.63,8.80994492]
[1765893709686,12.0388518,126.74,126.7,12.0388518]
[1765893709886,7.88892395,126.76,126.72,12.7488518]
[1765893710095,7.88892395,126.76,126.73,12.7488518]
[1765893710299,7.88892395,126.76,126.74,12.0388518]
[1765893710468,27.70999976,126.77,126.74,12.0388518]
[1765893710670,27.70999976,126.77,126.73,0.71]
[1765893710880,7.98830164,126.77,126.74,12.0388518]
[1765893711207,7.98830164,126.77,126.75,0.71]
[1765893711491,7.98830164,126.77,126.74,12.0388518]
[1765893711492,0.1,126.77,126.76,0.71]
[1765893711802,0.1,126.77,126.74,12.0388518]
[1765893711967,0.1,126.77,126.74,0.71]
[1765893712167,0.1,126.77,126.75,0.71]
[1765893712379,13.0470912,126.73,126.67,0.71]
[1765893712584,12.0388518,126.68,126.59,8.62]
[1765893712893,12.0388518,126.68,126.54,41.27191496]
[1765893712894,8.64,126.68,126.61,0.71]
[1765893713192,13.0470912,126.65,126.59,0.71]
[1765893713394,12.0388518,126.61,126.59,0.71]
[1765893713592,12.0388518,126.61,126.57,0.71]
[1765893713901,12.0388518,126.59,126.56,0.71]
[1765893714098,12.0388518,126.58,126.56,0.71]
[1765893714396,12.0388518,126.57,126.5,12.7488518]
[1765893714578,12.0388518,126.57,126.45,0.71]
[1765893714579,13.0470912,126.5,126.45,0.71]
[1765893714894,21.6870912,126.5,126.45,0.71]
[1765893715191,21.6870912,126.5,126.44,14.88649082]
[1765893715192,33.725943,126.5,126.46,0.71]
[1765893715362,27.66142416,126.53,126.46,0.71]
[1765893715566,39.70027596,126.53,126.45,0.71]
[1765893715794,12.0388518,126.52,126.49,0.71]
[1765893716006,33.725943,126.57,126.52,0.71]
[1765893716376,33.725943,126.57,126.47,8.80994492]
[1765893716377,13.0470912,126.54,126.45,7.90809138]
[1765893716579,27.66142416,126.53,126.49,0.71]
[1765893717011,27.66142416,126.53,126.49,12.0388518]
[1765893717304,36.30142416,126.53,126.47,0.71]
[1765893717531,7.90250117,126.55,126.52,12.0388518]
[1765893717681,7.90250117,126.55,126.53,0.71]
[1765893717885,39.6963905,126.55,126.51,0.71]
[1765893718093,25.085943,126.52,126.45,12.7488518]
[1765893718378,12.0388518,126.54,126.49,12.0388518]
[1765893718577,12.0388518,126.54,126.44,11.65758394]
[1765893718578,7.90250117,126.55,126.51,0.71]
[1765893718804,27.6575387,126.55,126.51,0.71]
[1765893718986,27.6575387,126.55,126.45,0.71]
[1765893719305,48.33849451,126.55,126.51,0.71]
[1765893719507,25.08804701,126.52,126.47,12.75095581]
[1765893719810,8.64,126.51,126.44,3.55763902]
[1765893720009,8.64,126.51,126.44,2.84763902]
[1765893720010,13.0470912,126.48,126.44,2.84763902]
[1765893720209,8.80994492,126.49,126.44,1e-08]
[1765893720505,12.04095581,126.46,126.44,1e-08]
[1765893720678,25.08804701,126.45,126.44,1e-08]
[1765893720877,25.08804701,126.45,126.35,8.62447277]
[1765893720878,13.0470912,126.43,126.35,8.62447277]
[1765893721187,13.0470912,126.43,126.36,0.71]
[1765893721385,67.20961492,126.47,126.33,0.71]
[1765893721386,12.04095581,126.38,126.33,0.71]
[1765893721582,12.04095581,126.35,126.34,5.82901574]
[1765893721782,12.04095581,126.35,126.27,0.71]
[1765893721783,21.6870912,126.35,126.27,0.71]
[1765893722125,8.80994492,126.4,126.29,0.71]
[1765893722291,12.04095581,126.35,126.28,0.71]
[1765893722483,36.33425541,126.38,126.3,0.71]
[1765893722806,36.33425541,126.38,126.33,0.71]
[1765893723189,7.9126444,126.38,126.31,0.71]
[1765893723396,0.99999999,126.49,126.31,0.71]
[1765893723397,7.90513833,126.5,126.32,0.71]
[1765893723600,7.90513833,126.5,126.34,0.7]
[1765893723808,7.90513833,126.5,126.33,0.7]
[1765893723809,8.64,126.49,126.33,0.7]
[1765893724003,9.63999999,126.49,126.33,0.7]
[1765893724201,8.80994492,126.48,126.37,0.7]
[1765893724516,27.67454732,126.47,126.37,0.7]
[1765893724727,27.67454732,126.47,126.4,4.11652947]
[1765893724894,7.90701352,126.47,126.37,7.1497136]
[1765893725094,13.0470912,126.46,126.37,7.1497136]
[1765893725414,27.67454732,126.47,126.37,7.1497136]
[1765893725415,7.90513833,126.5,126.45,12.04095581]
[1765893725612,27.66798417,126.5,126.37,7.1497136]
[1765893725818,8.64,126.55,126.37,66.49924275]
[1765893725819,0.69,126.54,126.37,66.49924275]
[1765893726198,0.99999999,126.63,126.38,0.99999999]
[1765893726400,0.69,126.59,126.5,12.04095581]
[1765893726602,0.99999999,126.68,126.53,12.04095581]
[1765893726826,40.1764107,126.63,126.53,0.7]
[1765893727021,12.73095581,126.55,126.53,0.7]
[1765893727221,12.73095581,126.55,126.49,7.90575338]
[1765893727222,13.0470912,126.55,126.44,19.94933308]
[1765893727393,12.04095581,126.48,126.36,0.99999999]
[1765893727587,13.0470912,126.5,126.44,19.94969125]
[1765893727891,13.0470912,126.5,126.44,7.90872966]
[1765893728087,13.0470912,126.47,126.33,39.57765105]
[1765893728301,13.0470912,126.47,126.41,12.04095581]
[1765893728302,13.7370912,126.47,126.41,12.04095581]
[1765893728618,0.69,126.58,126.36,0.99999999]
[1765893728819,13.0470912,126.5,126.37,8.80994492]
[1765893729022,21.6870912,126.5,126.33,67.28286754]
[1765893729203,12.04095581,126.42,126.37,12.04095581]
[1765893729404,0.69,126.44,126.33,27.70521649]
[1765893729405,12.04095581,126.39,126.33,0.7]
[1765893729717,12.04095581,126.39,126.32,7.91632418]
[1765893729718,0.69,126.48,126.37,12.04095581]
[1765893729922,12.04095581,126.42,126.33,0.7]
[1765893730119,12.04095581,126.41,126.35,12.74095581]
[1765893730319,17.94994492,126.49,126.35,12.74095581]
[1765893730320,1.19,126.49,126.41,0.7]
[1765893730506,1.19,126.49,126.35,13.0470912]
[1765893730507,7.90701352,126.47,126.43,0.7]
[1765893730903,0.5,126.49,126.44,12.74095581]
[1765893731106,0.5,126.49,126.46,12.74095581]
[1765893731308,0.5,126.49,126.47,12.04095581]
[1765893731506,12.54095581,126.49,126.44,0.7]
[1765893731824,0.5,126.49,126.45,12.74095581]
[1765893732005,0.5,126.49,126.46,12.04095581]
[1765893732322,0.5,126.49,126.45,0.7]
[1765893732526,0.5,126.49,126.48,19.94734417]
[1765893732698,19.75529846,126.55,126.49,0.7]
[1765893732699,7.90215264,126.55,126.49,0.7]
[1765893733024,7.90215264,126.55,126.41,37.76709119]
[1765893733025,0.69,126.54,126.43,0.7]
[1765893733197,0.69,126.51,126.44,12.04095581]
[1765893733396,0.69,126.51,126.46,12.04095581]
[1765893733598,13.0470912,126.53,126.47,12.04095581]
[1765893733812,12.04095581,126.52,126.47,12.74095581]
[1765893734020,12.04095581,126.49,126.44,7.90876874]
[1765893734330,13.0470912,126.53,126.49,0.7]
[1765893734507,19.94617284,126.5,126.46,0.7]
[1765893734707,0.69,126.46,126.31,0.99999999]
[1765893734914,0.69,126.45,126.34,0.7]
[1765893735127,0.69,126.45,126.39,12.04095581]
[1765893735300,13.0470912,126.47,126.43,12.74095581]
[1765893735501,8.59263948,126.54,126.46,12.04095581]
[1765893735818,12.04095581,126.49,126.42,0.7]
[1765893736021,13.0470912,126.51,126.46,12.04095581]
[1765893736215,27.65923818,126.54,126.48,12.04095581]
[1765893736429,28.34572146,126.56,126.5,12.04095581]
[1765893736614,28.34572146,126.56,126.51,7.90451347]
[1765893736615,20.63295781,126.56,126.51,7.90451347]
[1765893736927,20.63295781,126.56,126.51,0.7]
[1765893736928,12.04095581,126.54,126.51,0.7]
[1765893737111,7.902002,126.56,126.51,0.7]
[1765893737432,0.69,126.63,126.53,21.55090073]
[1765893737625,0.69,126.63,126.56,12.74095581]
[1765893737822,12.04095581,126.64,126.59,12.74095581]
[1765893738004,12.04095581,126.62,126.55,8.80994492]
[1765893738207,12.04095581,126.63,126.53,0.7]
[1765893738428,27.63521514,126.65,126.53,0.7]
[1765893738429,13.0470912,126.62,126.57,12.74095581]
[1765893738614,7.89527458,126.66,126.59,20.64047393]
[1765893738797,7.89527458,126.66,126.55,39.50970871]
[1765893738798,12.04095581,126.62,126.57,8.80994492]
[1765893739004,12.04095581,126.62,126.58,0.7]
[1765893739226,13.0470912,126.65,126.56,7.90132491]
[1765893739418,12.04095581,126.63,126.58,21.55090073]
[1765893739631,12.04095581,126.63,126.57,19.7514649]
[1765893739632,12.04095581,126.6,126.55,12.04095581]
[1765893739806,13.7370912,126.62,126.54,12.74095581]
[1765893740007,12.04095581,126.58,126.53,17.41270641]
[1765893740214,0.69,126.61,126.54,0.7]
[1765893740529,8.64,126.63,126.48,13.0470912]
[1765893740530,12.04095581,126.56,126.51,20.64542188]
[1765893740709,7.90117414,126.57,126.51,7.90446607]
[1765893740910,7.90117414,126.57,126.51,12.74095581]
[1765893741135,0.69,126.55,126.48,16.71623938]
[1765893741460,13.0470912,126.54,126.47,12.04095581]
[1765893741733,0.69,126.56,126.47,12.04095581]
[1765893741907,0.69,126.56,126.39,41.27191496]
[1765893741908,12.04095581,126.54,126.5,0.7]
[1765893742102,7.89951812,126.59,126.52,0.7]
[1765893742327,32.98756513,126.59,126.53,9.50994492]
[1765893742528,8.64,126.61,126.56,7.90139064]
[1765893742732,16.53841327,126.61,126.54,9.50994492]
[1765893742905,12.04095581,126.6,126.55,20.64264451]
[1765893743105,16.53841327,126.61,126.53,12.04095581]
[1765893743320,16.53841327,126.61,126.55,7.90190165]
[1765893743630,7.89841327,126.61,126.56,12.74095581]
[1765893743806,7.89841327,126.61,126.55,12.04095581]
[1765893743807,0.69,126.6,126.55,12.04095581]
[1765893744008,19.93936908,126.61,126.56,12.04095581]
[1765893744217,28.33408896,126.61,126.53,19.94403457]
[1765893744407,7.89841327,126.61,126.55,19.94291954]
[1765893744608,19.93936908,126.61,126.56,12.74095581]
[1765893744926,0.69,126.64,126.57,0.7]
[1765893744927,8.58656046,126.64,126.57,0.7]
[1765893745116,12.04095581,126.61,126.56,12.74095581]
[1765893745319,7.89656046,126.64,126.58,0.7]
[1765893745640,12.04095581,126.62,126.56,12.04095581]
[1765893745816,7.89656046,126.64,126.59,12.04095581]
[1765893746025,7.89569869,126.66,126.59,0.7]
[1765893746222,20.94278989,126.66,126.6,12.74095581]
[1765893746428,12.04095581,126.65,126.6,12.04095581]
[1765893746633,12.04095581,126.62,126.58,7.89996551]
[1765893746823,12.04095581,126.63,126.59,7.89942032]
[1765893747152,12.04095581,126.64,126.6,7.89883623]
[1765893747310,7.89524199,126.66,126.6,12.74095581]
[1765893747510,12.73095581,126.61,126.55,7.90181981]
[1765893747721,13.0470912,126.63,126.58,7.89999484]
[1765893748014,12.04095581,126.61,126.57,0.7]
[1765893748232,13.0470912,126.63,126.58,7.90009434]
[1765893748439,12.04095581,126.65,126.6,12.04095581]
[1765893748749,12.04095581,126.63,126.58,0.7]
[1765893748961,12.04095581,126.63,126.6,7.89881478]
[1765893749120,0.69,126.62,126.51,0.7]
[1765893749315,0.69,126.62,126.45,12.04095581]
[1765893749316,13.0470912,126.62,126.56,7.9012221]
[1765893749518,12.04095581,126.59,126.54,12.04095581]
[1765893749722,12.04095581,126.58,126.54,8.60256028]
[1765893749923,12.04095581,126.59,126.55,7.90194165]
[1765893750144,12.04095581,126.6,126.56,7.90136008]
[1765893750339,0.69,126.65,126.56,20.64231589]
[1765893750643,19.93860231,126.62,126.58,7.9001422]
[1765893750846,12.04095581,126.61,126.57,0.7]
[1765893751025,12.04095581,126.61,126.57,8.600753]
[1765893751540,12.04095581,126.61,126.55,19.75396873]
[1765893751737,7.8976465,126.62,126.57,7.90055461]
[1765893751738,8.5876465,126.62,126.57,7.90055461]
[1765893751925,27.64176275,126.62,126.55,8.80994492]
[1765893752125,12.04095581,126.58,126.56,0.7]
[1765893752343,0.69,126.6,126.52,8.80994492]
[1765893752644,12.04095581,126.57,126.53,7.90326404]
[1765893752818,20.94608691,126.6,126.54,21.55090073]
[1765893753019,0.69,126.59,126.52,8.80994492]
[1765893753427,12.04095581,126.56,126.52,8.80994492]
[1765893753826,0.69,126.59,126.52,29.4446634]
[1765893754027,40.69332229,126.6,126.52,16.71370759]
[1765893754322,12.04095581,126.59,126.53,0.69]
[1765893754660,19.94194831,126.57,126.48,27.67235926]
[1765893754954,19.94194831,126.57,126.52,12.73095581]
[1765893755155,8.64,126.61,126.55,8.80994492]
[1765893755349,28.57946018,126.61,126.55,20.85090073]
[1765893755547,39.47301053,126.67,126.55,20.85090073]
[1765893755548,19.74005973,126.65,126.57,0.19]
[1765893755726,0.66,126.65,126.59,12.04095581]
[1765893755932,7.89515237,126.66,126.57,12.23095581]
[1765893755933,12.04095581,126.62,126.57,12.23095581]
[1765893756132,12.04095581,126.61,126.52,8.80994492]
[1765893756456,12.70095581,126.62,126.57,12.04095581]
[1765893756827,20.59882349,126.62,126.57,12.04095581]
[1765893757023,7.89786768,126.62,126.57,7.90051931]
[1765893757336,12.04095581,126.62,126.57,39.69339105]
[1765893757540,0.66,126.6,126.57,7.90051931]
[1765893757738,27.63764755,126.64,126.57,7.90051931]
[1765893757739,12.70095581,126.62,126.57,19.94147512]
[1765893757938,7.89664945,126.64,126.59,12.04095581]
[1765893758157,20.59760526,126.64,126.59,12.04095581]
[1765893758355,20.59675136,126.65,126.6,12.04095581]
[1765893758561,0.66,126.62,126.58,12.04095581]
[1765893758736,7.89579555,126.65,126.61,7.89827027]
[1765893759056,20.59675136,126.65,126.6,7.89867342]
[1765893759264,12.04095581,126.64,126.6,7.89867342]
[1765893759583,13.7070912,126.62,126.56,31.79353646]
[1765893759733,12.70095581,126.61,126.57,7.90070557]
[1765893759932,12.70095581,126.63,126.58,7.8998971]
[1765893760131,33.64384256,126.65,126.6,19.93982919]
[1765893760353,33.64384256,126.65,126.59,7.89927464]
[1765893760354,12.70095581,126.63,126.59,7.89927464]
[1765893760656,12.70095581,126.64,126.6,7.89880163]
[1765893760843,7.89702282,126.63,126.59,7.8992758]
[1765893761167,7.89702282,126.63,126.58,7.89993529]
[1765893761168,20.59797863,126.63,126.58,7.89993529]
[1765893761369,0.66,126.62,126.57,7.90061984]
[1765893761573,12.04095581,126.62,126.58,7.89994077]
[1765893761735,7.89662255,126.64,126.59,12.04095581]
[1765893762062,19.93757836,126.64,126.59,12.04095581]
[1765893762259,0.66,126.63,126.58,19.94089658]
[1765893762580,7.89662255,126.64,126.59,12.73095581]
[1765893762751,20.94314779,126.65,126.59,12.73095581]
[1765893762941,8.55540388,126.66,126.6,16.70883907]
[1765893763267,20.59635969,126.66,126.61,12.04095581]
[1765893763647,16.53473125,126.67,126.62,12.04095581]
[1765893763966,7.99294742,126.7,126.65,12.04095581]
[1765893764264,8.65294742,126.7,126.66,12.04095581]
[1765893764570,0.1,126.7,126.67,12.04095581]
[1765893764865,0.1,126.7,126.67,19.9354849]
[1765893765074,0.1,126.7,126.69,21.54090073]
[1765893765256,19.71852999,126.79,126.71,0.69]
[1765893765451,8.54622074,126.81,126.74,0.69]
[1765893765641,0.66,126.84,126.76,23.21046281]
[1765893765841,0.66,126.84,126.74,8.62]
[1765893765842,14.37051789,126.8,126.75,13.71051789]
[1765893766044,13.71051789,126.82,126.76,13.71051789]
[1765893766247,22.25529366,126.83,126.76,23.21046281]
[1765893766459,7.88376683,126.85,126.77,9.49994492]
[1765893766664,0.76,126.86,126.79,9.49994492]
[1765893766859,8.64288646,126.86,126.81,7.88531693]
[1765893767059,0.1,126.86,126.82,0.69]
[1765893767260,0.1,126.86,126.82,14.40051789]
[1765893767451,0.1,126.86,126.82,0.69]
[1765893767659,13.71051789,126.85,126.79,8.80994492]
[1765893767868,0.66,126.85,126.77,30.21834498]
[1765893768057,0.66,126.85,126.78,7.88709996]
[1765893768264,0.66,126.81,126.78,7.88722864]
[1765893768584,40.73665729,126.86,126.81,7.88551827]
[1765893768585,8.64280673,126.86,126.81,7.88551827]
[1765893768743,0.1,126.86,126.83,13.71051789]
[1765893768948,13.71051789,126.85,126.8,8.57629697]
[1765893769161,27.68954511,126.86,126.8,17.19629697]
[1765893769361,27.68954511,126.86,126.8,0.69]
[1765893769646,0.66,126.81,126.8,0.69]
[1765893769846,0.99999999,126.56,126.28,20.29278664]
[1765893770091,0.99999999,126.52,126.44,19.77222397]
[1765893770375,4.12833642,126.59,126.44,27.68111356]
[1765893770671,4.12833642,126.59,126.45,38.76753523]
[1765893770875,0.66,126.58,126.54,7.90211963]
[1765893771052,1.65999999,126.58,126.53,13.71051789]
[1765893771372,0.66,126.57,126.5,8.62]
[1765893771552,0.66,126.57,126.54,7.90242961]
[1765893771742,1.65999999,126.57,126.54,7.90242961]
[1765893771947,17.17542762,126.59,126.54,7.90242961]
[1765893771948,5.78833641,126.59,126.55,13.71051789]
[1765893772188,5.78833641,126.59,126.54,7.90242961]
[1765893772189,4.12833642,126.59,126.54,36.27902831]
[1765893772352,4.12833642,126.59,126.57,13.71051789]
[1765893772557,4.12833642,126.59,126.58,13.71051789]
[1765893772852,4.12833642,126.59,126.58,30.23066009]
[1765893773070,0.66,126.65,126.58,30.23066009]
[1765893773260,0.66,126.65,126.58,36.2704977]
[1765893773576,0.99999999,126.68,126.63,13.71051789]
[1765893773772,22.60504697,126.67,126.58,27.6504977]
[1765893773980,0.99999999,126.64,126.58,36.2704977]
[1765893774149,0.91729517,126.63,126.6,13.71051789]
[1765893775184,0.66,126.62,126.58,7.9001422]
[1765893775386,0.91729517,126.61,126.58,7.9001422]
[1765893775578,0.91729517,126.61,126.58,13.71051789]
[1765893775775,1.91729516,126.61,126.57,7.90066245]
[1765893776077,1.65999999,126.58,126.55,7.9018849]
[1765893776245,0.91729517,126.57,126.54,7.90256842]
[1765893776444,0.99999999,126.56,126.52,13.71051789]
[1765893776666,0.91729517,126.55,126.52,13.71051789]
[1765893776874,0.66,126.54,126.46,39.53734323]
[1765893777055,0.91729517,126.53,126.49,21.61569646]
[1765893777285,1.91729516,126.53,126.49,21.61569646]
[1765893777451,0.91729517,126.53,126.5,7.90506326]
[1765893777805,0.66,126.52,126.48,8.62]
[1765893778081,1.91729516,126.51,126.45,21.61864723]
[1765893778257,1.65999999,126.5,126.45,16.52812934]
[1765893778448,0.91729517,126.49,126.45,16.52812934]
[1765893778649,0.91729517,126.49,126.45,30.23864723]
[1765893778867,0.91729517,126.49,126.46,13.71051789]
[1765893779063,0.25729517,126.49,126.47,21.61753141]
[1765893779268,0.25729517,126.49,126.48,13.71051789]
[1765893779695,0.66,126.56,126.48,13.71051789]
[1765893779871,1.65999999,126.57,126.53,13.71051789]
[1765893780383,14.71051788,126.57,126.52,13.71051789]
[1765893780580,0.66,126.56,126.52,13.71051789]
[1765893780893,0.99999999,126.57,126.44,13.71051789]
[1765893780894,0.66,126.49,126.44,13.71051789]
[1765893781186,0.66,126.49,126.39,0.2]
[1765893781187,13.71051789,126.48,126.43,13.71051789]
[1765893781380,0.99999999,126.48,126.43,13.71051789]
[1765893781602,0.66,126.48,126.42,36.3054928]
[1765893781772,1.65999999,126.48,126.42,36.3054928]
[1765893781968,0.99999999,126.51,126.46,13.71051789]
[1765893782273,1.65999999,126.57,126.5,13.71051789]
[1765893782478,1.65999999,126.57,126.51,17.42994492]
[1765893782479,0.66,126.57,126.51,17.42994492]
[1765893782663,0.66,126.57,126.54,13.71051789]
[1765893782858,0.66,126.57,126.51,8.80994492]
[1765893782859,7.89964952,126.59,126.52,8.62]
[1765893783059,7.89964952,126.59,126.42,106.7869008]
[1765893783060,0.66,126.53,126.42,67.2361968]
[1765893783268,0.66,126.5,126.44,8.80994492]
[1765893783483,15.37051788,126.5,126.44,8.80994492]
[1765893783788,0.69,126.51,126.47,13.71051789]
[1765893783962,0.69,126.53,126.49,13.71051789]
[1765893784167,9.59315062,126.54,126.5,13.71051789]
[1765893784367,0.69,126.59,126.53,13.71051789]
[1765893784595,8.89880091,126.61,126.56,13.71051789]
[1765893784759,7.89781698,126.62,126.57,13.71051789]